bitfinex/quotes_BTCUSD_20260311
["timestamp","ask_amount","ask_price","bid_price","bid_amount"]
[1773245248340,0.5,70416.0,70398.0,0.19662763]
[1773245248540,0.5,70416.0,70400.0,0.19662763]
[1773245249159,0.5,70416.0,70399.0,0.00148]
[1773245249160,0.47100671,70416.0,70399.0,0.00148]
[1773245249497,0.00148,70415.0,70397.0,0.00014205]
[1773245249692,0.001,70413.0,70397.0,0.00014205]
[1773245251187,0.07101062,70412.0,70397.0,0.00014205]
[1773245251470,0.00148,70411.0,70397.0,0.00014205]
[1773245251902,0.00148,70411.0,70398.0,0.14100977]
[1773245252107,0.00148,70411.0,70399.0,0.14100977]
[1773245252319,0.00148,70411.0,70400.0,0.14100977]
[1773245252510,0.00148,70411.0,70401.0,0.14100977]
[1773245252678,0.00148,70411.0,70402.0,0.14100977]
[1773245252880,0.00148,70411.0,70403.0,0.14100977]
[1773245253080,0.07101264,70410.0,70404.0,0.14100977]
[1773245253276,0.07101264,70410.0,70405.0,0.14100977]
[1773245253481,0.07101264,70410.0,70397.0,0.00014205]
[1773245254330,0.07101264,70410.0,70377.0,0.28099993]
[1773245254331,0.01681749,70409.0,70377.0,0.28099993]
[1773245254575,0.01681749,70409.0,70366.0,0.19317576]
[1773245254576,0.12683723,70400.0,70372.0,0.12176009]
[1773245254771,0.12347966,70399.0,70359.0,0.07106388]
[1773245254910,0.12347966,70399.0,70360.0,0.00148]
[1773245255110,0.07102474,70398.0,70359.0,0.19662763]
[1773245255333,0.03040722,70397.0,70359.0,0.19662763]
[1773245255533,0.15359734,70397.0,70359.0,0.19662763]
[1773245255735,0.12683723,70390.0,70359.0,0.19662763]
[1773245255939,0.00148,70389.0,70359.0,0.19662763]
[1773245257030,0.00148,70389.0,70358.0,0.01272]
[1773245257031,0.12319203,70388.0,70358.0,0.01124]
[1773245257238,0.07103584,70387.0,70358.0,0.01124]
[1773245257441,0.03040722,70386.0,70358.0,0.08230454]
[1773245257644,0.00148,70385.0,70359.0,0.39000339]
[1773245257842,0.00148,70384.0,70359.0,0.39000339]
[1773245258043,0.03040722,70386.0,70359.0,0.19337576]
[1773245258405,0.00148,70385.0,70360.0,0.19662763]
[1773245258551,0.03040722,70386.0,70360.0,0.19662763]
[1773245258775,0.03040722,70386.0,70361.0,0.19662763]
[1773245259385,0.03040722,70386.0,70363.0,0.19662763]
[1773245259597,0.10144443,70386.0,70359.0,0.0002]
[1773245259757,0.02418379,70385.0,70360.0,0.19810763]
[1773245259961,0.02404174,70385.0,70361.0,0.00148]
[1773245260161,0.00148,70384.0,70361.0,0.00148]
[1773245261053,0.00148,70384.0,70362.0,0.00148]
[1773245261416,0.07103988,70383.0,70362.0,0.00148]
[1773245261626,0.09530885,70383.0,70362.0,0.00148]
[1773245261842,0.09530885,70383.0,70359.0,0.0002]
[1773245262014,0.09530885,70383.0,70359.0,0.07126349]
[1773245262349,0.09530885,70383.0,70359.0,0.0002]
[1773245262704,0.12683723,70380.0,70359.0,0.0002]
[1773245262905,0.09530885,70383.0,70359.0,1e-08]
[1773245263104,0.12392243,70379.0,70355.0,0.00048]
[1773245263313,0.12392243,70379.0,70351.0,0.0002]
[1773245263561,0.07104492,70378.0,70351.0,0.0002]
[1773245264220,0.00148,70377.0,70351.0,0.0002]
[1773245264545,0.02566897,70376.0,70351.0,0.0002]
[1773245265357,0.02418897,70376.0,70354.0,0.19995066]
[1773245265686,0.02418897,70376.0,70356.0,0.19995066]
[1773245266796,0.09523637,70376.0,70356.0,0.19995066]
[1773245267021,0.09523637,70376.0,70367.0,0.00014211]
[1773245267987,0.09623637,70376.0,70367.0,0.00014211]
[1773245268987,0.09623637,70376.0,70354.0,0.07106819]
[1773245268988,0.09523637,70376.0,70356.0,0.0002]
[1773245269230,0.09523637,70376.0,70354.0,0.00144]
[1773245269231,0.16977033,70371.0,70353.0,0.2562746]
[1773245269395,0.14122426,70370.0,70355.0,0.19995066]
[1773245269605,0.14122426,70369.0,70367.0,0.001]
[1773245269807,0.14122426,70368.0,70355.0,0.20139066]
[1773245270050,0.14122426,70367.0,70355.0,0.20139066]
[1773245270227,0.14122426,70368.0,70355.0,0.20139066]
[1773245270409,0.14122426,70368.0,70355.0,0.2017633]
[1773245270737,0.14270426,70369.0,70355.0,0.2017633]
[1773245270939,0.00148,70369.0,70355.0,0.00181264]
[1773245271150,0.14270426,70369.0,70355.0,0.00181264]
[1773245271353,0.00148,70369.0,70355.0,0.00181264]
[1773245271721,0.07105502,70368.0,70355.0,0.00137264]
[1773245272110,0.07105502,70368.0,70355.0,0.00037264]
[1773245272312,0.07105502,70368.0,70355.0,0.00137264]
[1773245272755,0.07105502,70368.0,70355.0,0.00037264]
[1773245273062,0.06903473,70369.0,70355.0,0.07144078]
[1773245273358,0.06903473,70369.0,70355.0,0.20889743]
[1773245273858,0.02544469,70369.0,70355.0,0.27996529]
[1773245274119,0.02544469,70369.0,70355.0,0.20889743]
[1773245274511,0.02544469,70369.0,70355.0,0.20989743]
[1773245274708,0.02544469,70369.0,70355.0,0.20889743]
[1773245275112,0.02544469,70369.0,70355.0,0.20989743]
[1773245275409,0.02544469,70369.0,70355.0,0.20889743]
[1773245275625,0.16858808,70398.0,70359.0,0.12683723]
[1773245275770,0.0008933,70394.0,70362.0,0.20852479]
[1773245276404,0.07192212,70394.0,70362.0,0.20852479]
[1773245277817,0.07192212,70394.0,70363.0,0.07106007]
[1773245278145,0.0008933,70394.0,70364.0,0.20852479]
[1773245278421,0.07192253,70394.0,70364.0,0.20852479]
[1773245278580,0.07192211,70394.0,70364.0,0.20852479]
[1773245279102,0.07192211,70394.0,70366.0,0.20852479]
[1773245279283,0.07192211,70394.0,70367.0,0.21000479]
[1773245280111,0.12865818,70393.0,70360.0,0.07254274]
[1773245280312,0.12865818,70393.0,70360.0,0.07254303]
[1773245280558,0.12865818,70393.0,70358.0,0.27958913]
[1773245280559,0.12865818,70389.0,70355.0,0.00037264]
[1773245280714,0.12865818,70379.0,70356.0,0.0002]
[1773245280907,0.12865818,70377.0,70351.0,0.0002]
[1773245281183,0.00144,70376.0,70362.0,0.002]
[1773245281312,0.00144,70375.0,70362.0,0.002]
[1773245281513,0.12683723,70390.0,70351.0,0.00031175]
[1773245281514,0.00144,70374.0,70351.0,0.00031175]
[1773245281862,0.00144,70373.0,70352.0,0.20852479]
[1773245282064,0.07105199,70371.0,70352.0,0.20852479]
[1773245282956,0.00014205,70399.0,70361.0,0.12683723]
[1773245283115,0.00014205,70399.0,70354.0,0.11091067]
[1773245283116,0.01094614,70395.0,70371.0,0.20852479]
[1773245283318,0.01094614,70395.0,70373.0,0.20852479]
[1773245283319,0.07124884,70394.0,70373.0,0.20852479]
[1773245283686,0.07124884,70394.0,70374.0,0.21000479]
[1773245283883,0.07124884,70394.0,70375.0,0.00148]
[1773245284111,0.07124884,70394.0,70376.0,0.07104694]
[1773245284319,0.07124884,70394.0,70377.0,0.20852479]
[1773245284534,0.00144,70393.0,70377.0,0.20852479]
[1773245284848,0.00144,70393.0,70377.0,0.20865319]
[1773245286206,0.00144,70393.0,70378.0,0.07104492]
[1773245286552,0.00144,70393.0,70379.0,0.20852479]
[1773245286975,0.00144,70393.0,70379.0,0.20865319]
[1773245287184,0.00014205,70399.0,70379.0,0.20865319]
[1773245287342,0.0712775,70399.0,70379.0,0.20865319]
[1773245287548,0.00025346,70399.0,70379.0,0.20865319]
[1773245287950,0.00048,70406.0,70379.0,0.20865319]
[1773245288120,0.00048,70406.0,70379.0,0.20902491]
[1773245288325,0.00048,70406.0,70382.0,0.20852479]
[1773245288545,0.00038081,70406.0,70384.0,0.20852479]
[1773245290321,0.14083431,70409.0,70386.0,0.20852479]
[1773245290643,0.01097966,70410.0,70386.0,0.20852479]
[1773245290786,0.01124,70415.0,70386.0,0.20852479]
[1773245290984,0.0709896,70433.0,70391.0,0.20852479]
[1773245291193,0.07099045,70432.0,70401.0,0.20852479]
[1773245291399,0.0709896,70433.0,70403.0,0.20852479]
[1773245291400,0.00148,70431.0,70403.0,0.20852479]
[1773245292027,0.00148,70431.0,70403.0,0.20838274]
[1773245292396,0.00148,70431.0,70405.0,0.20852479]
[1773245292397,0.00011166,70431.0,70405.0,0.20852479]
[1773245293012,0.00011166,70431.0,70404.0,0.07101869]
[1773245293013,0.00011166,70431.0,70407.0,0.20852479]
[1773245293427,0.07098844,70436.0,70407.0,0.20852479]
[1773245293428,0.01097122,70450.0,70407.0,0.20852479]
[1773245293716,0.45992237,70469.0,70431.0,0.20852479]
[1773245293921,1e-08,70451.0,70433.0,0.20852479]
[1773245294336,0.07095557,70467.0,70434.0,0.07098844]
[1773245294512,0.07095753,70465.0,70435.0,0.20852479]
[1773245294918,0.00059162,70457.0,70435.0,0.20852479]
[1773245295329,0.00148,70469.0,70436.0,0.09790179]
[1773245295558,0.00148,70469.0,70437.0,0.20852479]
[1773245295728,0.19185047,70463.0,70437.0,0.20852479]
[1773245295916,0.19185047,70463.0,70436.0,0.00011162]
[1773245295917,0.1270561,70460.0,70436.0,0.00011162]
[1773245296127,0.00022001,70446.0,70436.0,0.00011162]
[1773245296909,0.00022001,70446.0,70430.0,0.00148]
[1773245296910,0.07119726,70446.0,70430.0,0.00148]
[1773245297278,0.07119726,70446.0,70431.0,0.002]
[1773245297279,0.00022001,70446.0,70431.0,0.002]
[1773245298159,0.07096568,70457.0,70436.0,0.20952479]
[1773245298388,0.07107724,70457.0,70437.0,0.07098541]
[1773245298586,0.00011156,70457.0,70438.0,0.00148]
[1773245299299,0.00011156,70457.0,70431.0,0.002]
[1773245299931,0.13108582,70456.0,70431.0,0.002]
[1773245300138,0.13108582,70456.0,70428.0,0.00148]
[1773245300565,0.07096728,70455.0,70425.0,0.07099687]
[1773245300767,0.07096728,70455.0,70419.0,0.00148]
[1773245300768,0.13102654,70453.0,70419.0,0.00148]
[1773245300973,0.13102654,70453.0,70416.0,0.07100639]
[1773245301179,0.13102654,70453.0,70415.0,0.07100658]
[1773245301180,0.13102654,70453.0,70414.0,0.27644226]
[1773245301384,0.13102654,70453.0,70414.0,0.27496226]
[1773245301588,0.13102654,70453.0,70415.0,0.00148]
[1773245301797,0.13102654,70453.0,70437.0,0.001]
[1773245302004,0.07096728,70455.0,70437.0,0.001]
[1773245302419,0.07107884,70457.0,70437.0,0.001]
[1773245302620,0.00148,70454.0,70437.0,0.001]
[1773245302945,0.00148,70454.0,70431.0,0.07099093]
[1773245303139,0.00148,70454.0,70430.0,0.0724721]
[1773245303339,0.00148,70454.0,70430.0,0.0724724]
[1773245303986,0.00148,70454.0,70430.0,0.07233035]
[1773245304198,0.00014198,70431.0,70430.0,0.07233035]
[1773245304437,0.002,70453.0,70430.0,0.07233035]
[1773245304438,0.07096929,70453.0,70430.0,0.07233035]
[1773245304814,0.07296929,70453.0,70430.0,0.07233035]
[1773245305474,0.07308085,70453.0,70430.0,0.07233035]
[1773245306301,0.07308085,70453.0,70430.0,0.00133795]
[1773245306501,0.07308085,70453.0,70390.0,0.15696]
[1773245306502,0.13062906,70452.0,70426.0,0.00148]
[1773245306792,0.13062906,70452.0,70416.0,0.07100561]
[1773245306793,0.13062906,70452.0,70420.0,0.00148]
[1773245307748,0.13062906,70452.0,70411.0,0.20395462]
[1773245307749,0.25762487,70440.0,70405.0,0.07101667]
[1773245307988,0.32453251,70439.0,70407.0,0.00148]
[1773245308172,0.32453251,70439.0,70408.0,0.00148]
[1773245308371,0.32453251,70439.0,70409.0,0.20395462]
[1773245308566,0.07098441,70438.0,70410.0,0.07101264]
[1773245309605,0.07098441,70438.0,70409.0,0.20395462]
[1773245309606,0.07098441,70438.0,70409.0,0.07101356]
[1773245309783,0.07098441,70438.0,70409.0,0.27496818]
[1773245310224,0.07098441,70438.0,70409.0,0.20395462]
[1773245310398,0.130357,70437.0,70406.0,0.00048]
[1773245310603,0.1270561,70430.0,70406.0,0.00048]
[1773245310803,0.131837,70429.0,70406.0,0.00048]
[1773245311884,0.131837,70429.0,70381.0,0.00141941]
[1773245311885,0.1302854,70419.0,70381.0,0.00141941]
[1773245312126,0.1270561,70420.0,70382.0,0.14127281]
[1773245312127,0.19248374,70409.0,70382.0,0.14127281]
[1773245312490,0.00148,70408.0,70383.0,0.14127281]
[1773245312668,0.07101566,70407.0,70384.0,0.14127281]
[1773245312964,0.07101566,70407.0,70385.0,0.14127281]
[1773245313140,0.07101566,70407.0,70386.0,0.14127281]
[1773245313345,0.07101566,70407.0,70381.0,0.07283282]
[1773245313547,0.07101566,70407.0,70382.0,0.14132824]
[1773245313747,0.07101566,70407.0,70381.0,0.00179113]
[1773245313748,0.07101566,70407.0,70383.0,0.14132824]
[1773245313930,0.07101566,70407.0,70384.0,0.14132824]
[1773245314131,0.07101566,70407.0,70381.0,0.00179113]
[1773245314132,0.07101566,70407.0,70385.0,0.14132824]
[1773245314453,0.07101566,70407.0,70381.0,0.00179113]
[1773245314768,0.07101566,70407.0,70383.0,0.20395462]
[1773245314769,0.00148,70406.0,70383.0,0.20395462]
[1773245314916,0.00148,70406.0,70382.0,0.21245939]
[1773245314917,0.07101566,70407.0,70385.0,0.20395462]
[1773245315122,0.00148,70406.0,70387.0,0.20395462]
[1773245315436,0.00148,70405.0,70388.0,0.1413915]
[1773245315754,0.00148,70405.0,70382.0,0.07104067]
[1773245315755,0.00148,70405.0,70389.0,0.1413915]
[1773245315950,0.07101561,70408.0,70382.0,0.07104067]
[1773245316153,0.00148,70404.0,70383.0,0.34535791]
[1773245316355,0.00148,70404.0,70384.0,0.34535791]
[1773245316555,0.00148,70404.0,70385.0,0.14140329]
[1773245316757,0.0710197,70403.0,70386.0,0.14140329]
[1773245316964,0.00148,70402.0,70387.0,0.14140329]
[1773245317158,0.00148,70402.0,70388.0,0.14140329]
[1773245317362,0.00148,70402.0,70386.0,0.27499141]
[1773245317363,0.0710197,70404.0,70387.0,0.20395462]
[1773245317565,0.00148,70401.0,70389.0,0.20395462]
[1773245317968,0.00148,70401.0,70381.0,0.20307411]
[1773245318168,0.00148,70401.0,70382.0,0.14145937]
[1773245318393,0.00148,70401.0,70383.0,0.14145937]
[1773245318555,0.00148,70401.0,70384.0,0.14145937]
[1773245318921,0.07102272,70400.0,70385.0,0.14145937]
[1773245319097,0.07102272,70400.0,70381.0,0.00199113]
[1773245319260,0.07102272,70400.0,70382.0,0.14143497]
[1773245319446,0.07102272,70400.0,70381.0,0.00199113]
[1773245319665,0.13182251,70399.0,70379.0,1e-08]
[1773245319901,0.13219416,70399.0,70379.0,1e-08]
[1773245320789,0.00148,70398.0,70379.0,1e-08]
[1773245320991,0.07101917,70404.0,70379.0,1e-08]
[1773245320992,0.00148,70397.0,70379.0,1e-08]
[1773245321300,0.00148,70397.0,70382.0,0.20648477]
[1773245321498,0.001,70407.0,70382.0,0.20648477]
[1773245321699,0.07101465,70408.0,70382.0,0.20648477]
[1773245321700,0.00148,70406.0,70382.0,0.20648477]
[1773245321899,0.001,70404.0,70382.0,0.20648477]
[1773245322662,0.00148,70403.0,70384.0,0.20648477]
[1773245322861,0.00148,70403.0,70386.0,0.20648477]
[1773245323360,0.07249989,70403.0,70386.0,0.20648477]
[1773245324207,0.07101989,70403.0,70386.0,0.20648477]
[1773245324409,0.19765415,70401.0,70379.0,0.07289459]
[1773245324825,0.07102272,70400.0,70379.0,0.07289459]
[1773245325032,0.07098272,70400.0,70379.0,0.07289459]
[1773245325900,0.07098272,70400.0,70379.0,0.27937936]
[1773245326347,0.001,70399.0,70379.0,0.27937936]
[1773245327204,0.07102474,70398.0,70380.0,0.20648477]
[1773245327891,0.00148,70397.0,70382.0,0.20648477]
[1773245328052,0.00148,70396.0,70382.0,0.20648477]
[1773245328553,0.00148,70395.0,70382.0,0.20648477]
[1773245329127,0.00148,70395.0,70381.0,0.19695507]
[1773245329128,0.07102878,70394.0,70381.0,0.0002]
[1773245329949,0.00148,70393.0,70381.0,0.0002]
[1773245330807,0.00148,70392.0,70381.0,0.0002]
[1773245331157,0.0710318,70391.0,70381.0,0.0002]
[1773245331564,0.00148,70390.0,70382.0,0.14149207]
[1773245331788,0.00148,70389.0,70384.0,0.20312351]
[1773245332194,0.00148,70392.0,70384.0,0.20312351]
[1773245332396,0.00148,70392.0,70381.0,0.00016]
[1773245332799,0.00148,70392.0,70381.0,0.00116]
[1773245333009,0.07102207,70401.0,70381.0,0.00116]
[1773245333319,0.02225216,70523.0,70381.0,0.00116]
[1773245333320,0.00148,70400.0,70381.0,0.00116]
[1773245333494,0.00148,70399.0,70381.0,0.00116]
[1773245334181,0.00148,70398.0,70381.0,0.00116]
[1773245334392,0.00148,70398.0,70381.0,0.00016]
[1773245334653,0.00148,70398.0,70382.0,0.14157407]
[1773245334845,0.00148,70398.0,70381.0,0.00016]
[1773245335073,0.07102575,70397.0,70381.0,0.00016]
[1773245335275,0.07102575,70397.0,70381.0,0.00116]
[1773245335495,0.22100094,70404.0,70381.0,0.00116]
[1773245335496,0.00014199,70428.0,70400.0,0.1270561]
[1773245335649,0.00289942,70451.0,70410.0,0.1270561]
[1773245335650,0.00141942,70451.0,70410.0,0.1270561]
[1773245335901,0.00141942,70451.0,70412.0,0.20312351]
[1773245335902,0.07097555,70447.0,70412.0,0.20312351]
[1773245336029,0.00170001,70446.0,70412.0,0.20312351]
[1773245336229,0.07267735,70446.0,70412.0,0.20312351]
[1773245336499,0.07311654,70446.0,70412.0,0.20312351]
[1773245336673,0.29411748,70446.0,70411.0,0.20727307]
[1773245336835,0.22100094,70445.0,70412.0,0.20460351]
[1773245337189,0.07097836,70444.0,70413.0,0.07100961]
[1773245337448,0.07141755,70444.0,70414.0,0.20312351]
[1773245338296,0.07141755,70444.0,70415.0,0.00148]
[1773245339808,0.29241849,70444.0,70415.0,0.07248724]
[1773245339979,0.29241849,70444.0,70415.0,0.00148]
[1773245340190,0.22100094,70443.0,70416.0,0.00148]
[1773245340410,0.22144013,70443.0,70416.0,0.00148]
[1773245340623,0.000142,70421.0,70416.0,0.00148]
[1773245340841,0.000142,70421.0,70388.0,0.07103483]
[1773245341055,0.000142,70421.0,70391.0,0.20312351]
[1773245341279,0.000142,70421.0,70392.0,0.14151034]
[1773245341499,0.000142,70421.0,70390.0,0.19808689]
[1773245341500,0.00144,70427.0,70394.0,0.20312351]
[1773245341669,0.07098541,70437.0,70396.0,0.20312351]
[1773245341891,0.00011149,70427.0,70400.0,0.1270561]
[1773245342057,0.00011149,70427.0,70402.0,0.20312351]
[1773245343204,0.00011149,70427.0,70402.0,0.20312351]
[1773245343430,0.00144,70436.0,70404.0,0.20312351]
[1773245343634,0.07098743,70435.0,70408.0,0.20312351]
[1773245344037,0.07142182,70440.0,70408.0,0.20312351]
[1773245344431,0.19906862,70439.0,70408.0,0.20312351]
[1773245344636,0.22100094,70438.0,70409.0,0.00148]
[1773245344861,0.22100094,70438.0,70410.0,0.00148]
[1773245345310,0.00144,70437.0,70410.0,0.00148]
[1773245345521,0.00144,70437.0,70404.0,0.07112816]
[1773245345522,0.22100094,70436.0,70404.0,0.00011149]
[1773245345728,0.22100094,70429.0,70404.0,0.00011149]
[1773245345956,0.07098686,70436.0,70405.0,0.20312351]
[1773245346151,0.00038339,70438.0,70405.0,0.20312351]
[1773245346152,0.0713688,70438.0,70405.0,0.20456351]
[1773245347366,0.0728088,70438.0,70405.0,0.20456351]
[1773245347755,0.0728088,70438.0,70406.0,0.07101667]
[1773245347960,0.0728088,70438.0,70407.0,0.20312351]
[1773245349460,0.0738088,70438.0,70407.0,0.20312351]
[1773245350503,0.0728088,70438.0,70408.0,0.07101465]
[1773245350678,0.0728088,70438.0,70409.0,0.20312351]
[1773245351272,0.00144,70437.0,70409.0,0.20312351]
[1773245351459,0.00182339,70437.0,70409.0,0.20312351]
[1773245352786,0.00182339,70437.0,70406.0,0.07101667]
[1773245352787,0.07098642,70436.0,70404.0,0.07112954]
[1773245353001,0.22100094,70434.0,70404.0,0.203235]
[1773245353245,0.22100094,70434.0,70407.0,0.001]
[1773245353586,0.22100094,70429.0,70407.0,0.001]
[1773245353808,0.22100094,70427.0,70404.0,0.00011149]
[1773245354518,0.07138433,70427.0,70404.0,0.00011149]
[1773245354929,0.09337928,70425.0,70404.0,0.00011149]
[1773245355503,0.09376267,70425.0,70404.0,0.00011149]
[1773245355939,0.00038339,70425.0,70404.0,0.203235]
[1773245356496,0.00144,70424.0,70404.0,0.203235]
[1773245356725,0.09606559,70424.0,70404.0,0.00011149]
[1773245356946,0.07099953,70423.0,70404.0,0.00011149]
[1773245360450,0.07199953,70423.0,70404.0,0.00011149]
[1773245361297,0.07199953,70423.0,70402.0,0.0002]
[1773245361298,0.09552016,70422.0,70402.0,0.0002]
[1773245361502,0.09552016,70422.0,70385.0,0.21737572]
[1773245361503,0.09552016,70419.0,70385.0,0.21737572]
[1773245361700,0.09552016,70419.0,70384.0,0.00144]
[1773245361701,0.09552016,70419.0,70387.0,0.21737572]
[1773245362563,0.095619,70417.0,70387.0,0.21737572]
[1773245363174,0.09571344,70415.0,70387.0,0.21737572]
[1773245363376,0.09571344,70408.0,70383.0,0.00144]
[1773245363580,0.09571344,70406.0,70381.0,0.07120185]
[1773245363779,0.09571344,70406.0,70383.0,0.21737572]
[1773245363986,0.07100658,70416.0,70383.0,0.21737572]
[1773245363987,0.00144,70405.0,70383.0,0.21737572]
[1773245364200,0.00144,70404.0,70402.0,0.0002]
[1773245364436,0.00144,70404.0,70387.0,0.21335463]
[1773245364437,0.00148,70403.0,70381.0,0.21753572]
[1773245364630,0.00148,70402.0,70382.0,0.14171971]
[1773245364830,0.00148,70402.0,70383.0,0.14171971]
[1773245365047,0.00148,70402.0,70385.0,0.21737572]
[1773245365202,0.07102171,70401.0,70394.0,0.0002]
[1773245366293,0.07101979,70403.0,70394.0,0.0002]
[1773245366502,0.07249979,70403.0,70394.0,0.0002]
[1773245367177,0.07100759,70415.0,70395.0,0.21737572]
[1773245367479,0.00148,70409.0,70394.0,0.0002]
[1773245369465,0.07101465,70408.0,70394.0,0.0002]
[1773245370595,0.00148,70407.0,70394.0,0.0002]
[1773245370793,0.00148,70407.0,70395.0,0.21737572]
[1773245371386,0.0724964,70407.0,70395.0,0.21737572]
[1773245372380,0.01078782,70404.0,70395.0,0.21737572]
[1773245372791,0.01078782,70404.0,70394.0,0.0002]
[1773245373772,0.01078782,70404.0,70394.0,0.21757572]
[1773245374701,0.01078782,70404.0,70395.0,0.0002]
[1773245374702,0.08180664,70404.0,70395.0,0.0002]
[1773245374931,0.01078782,70404.0,70395.0,0.21757572]
[1773245375117,0.08180651,70404.0,70395.0,0.21757572]
[1773245375522,0.01078782,70404.0,70395.0,0.21757572]
[1773245375806,0.07249647,70407.0,70395.0,0.21757572]
[1773245376568,0.07249647,70407.0,70391.0,0.0710318]
[1773245376769,0.07249647,70407.0,70392.0,0.14172154]
[1773245376944,0.07249647,70407.0,70393.0,0.14172154]
[1773245377151,0.07249647,70407.0,70394.0,0.21737572]
[1773245378186,0.22612453,70406.0,70393.0,0.00148]
[1773245378626,0.07249647,70407.0,70394.0,0.21737572]
[1773245379484,0.00148,70406.0,70394.0,0.20897772]
[1773245380166,0.07101768,70405.0,70394.0,0.20897772]
[1773245380390,0.00013,72510.0,70396.0,0.20916131]
[1773245380391,0.00148,70414.0,70396.0,0.20916131]
[1773245380605,0.07100154,70421.0,70397.0,0.14179727]
[1773245380807,0.00148,70417.0,70398.0,0.20916131]
[1773245380959,0.00148,70417.0,70398.0,0.21064131]
[1773245381182,0.00148,70418.0,70398.0,0.21064131]
[1773245381486,0.00011156,70422.0,70398.0,0.21064131]
[1773245381666,0.07111232,70422.0,70398.0,0.21064131]
[1773245381842,0.00011156,70422.0,70398.0,0.21064131]
[1773245382265,0.00011156,70422.0,70400.0,0.20916131]
[1773245382871,0.21933363,70420.0,70401.0,0.00148]
[1773245383179,0.22081363,70421.0,70402.0,0.20916131]
[1773245383533,0.22081363,70421.0,70403.0,0.00148]
[1773245384487,0.07100255,70420.0,70402.0,0.20916131]
[1773245384681,0.07100255,70420.0,70403.0,0.00148]
[1773245385910,0.29033618,70420.0,70403.0,0.00148]
[1773245386214,0.07100255,70420.0,70404.0,0.20916131]
[1773245386351,0.07100255,70420.0,70403.0,0.00148]
[1773245386545,0.07200255,70420.0,70403.0,0.00148]
[1773245387377,0.07200255,70420.0,70394.0,0.07102797]
[1773245387378,0.07100255,70420.0,70394.0,0.07102797]
[1773245387598,0.07100255,70420.0,70387.0,0.32272088]
[1773245387599,0.21933363,70419.0,70387.0,0.32272088]
[1773245387760,0.21933363,70419.0,70387.0,0.11355957]
[1773245387959,0.21933363,70419.0,70392.0,0.07102981]
[1773245388153,0.21933363,70419.0,70392.0,0.20916131]
[1773245388351,0.17002926,70417.0,70392.0,0.20916131]
[1773245388599,0.21933363,70414.0,70387.0,0.0002]
[1773245388915,0.21933363,70412.0,70387.0,0.0002]
[1773245389052,0.21933363,70412.0,70387.0,0.20936131]
[1773245390685,0.22783879,70410.0,70387.0,0.20936131]
[1773245391064,0.22783879,70410.0,70387.0,0.21084131]
[1773245391686,0.22783879,70408.0,70387.0,0.21084131]
[1773245391861,0.22783879,70406.0,70387.0,0.21084131]
[1773245392788,0.07101768,70405.0,70387.0,0.21084131]
[1773245393406,0.07101768,70405.0,70387.0,0.20936131]
[1773245393569,0.22783879,70404.0,70387.0,0.0002]
[1773245394809,0.22783879,70402.0,70387.0,0.0002]
[1773245395076,0.22783879,70400.0,70387.0,0.0002]
[1773245396379,0.22783879,70400.0,70387.0,0.00057165]
[1773245396750,0.07102373,70399.0,70387.0,0.00057165]
[1773245397447,0.07102373,70399.0,70381.0,0.07120184]
[1773245397448,0.22783879,70398.0,70381.0,0.00016]
[1773245397672,0.22821067,70398.0,70381.0,0.00016]
[1773245399057,0.22783879,70396.0,70381.0,0.00016]
[1773245399666,0.00148,70395.0,70381.0,0.00016]
[1773245399974,0.22783879,70394.0,70381.0,0.00016]
[1773245401012,0.07102575,70397.0,70381.0,0.00016]
[1773245401013,0.07101695,70406.0,70384.0,0.07103887]
[1773245401232,0.22624863,70414.0,70386.0,0.11335957]
[1773245401376,0.00148,70413.0,70388.0,0.21985779]
[1773245401579,0.00038339,70424.0,70391.0,0.21985779]
[1773245401819,0.00038339,70424.0,70392.0,0.00148]
[1773245402152,0.24095075,70430.0,70392.0,0.00148]
[1773245402153,0.00014198,70432.0,70401.0,0.21985779]
[1773245402308,0.00014198,70432.0,70403.0,0.21985779]
[1773245402688,0.00014198,70432.0,70390.0,0.1270436]
[1773245402689,0.00014198,70432.0,70405.0,0.21985779]
[1773245402856,0.00014198,70432.0,70407.0,0.21985779]
[1773245403058,0.00014198,70432.0,70409.0,0.21985779]
[1773245403203,0.00014198,70432.0,70412.0,0.21985779]
[1773245403407,0.00022001,70427.0,70414.0,0.21985779]
[1773245403853,0.00022001,70427.0,70413.0,0.00148]
[1773245404161,0.22783879,70426.0,70409.0,0.00148]
[1773245404373,0.22783879,70426.0,70403.0,0.00148]
[1773245404564,0.22783879,70426.0,70398.0,0.00148]
[1773245404971,0.22783879,70426.0,70392.0,0.29088657]
[1773245404972,0.22783879,70419.0,70392.0,0.00148]
[1773245405174,0.22783879,70415.0,70388.0,0.00248]
[1773245405607,0.22783879,70415.0,70387.0,0.07103577]
[1773245405814,0.22783879,70415.0,70388.0,0.21985779]
[1773245409829,0.22783879,70413.0,70389.0,0.29089161]
[1773245410036,0.00148,70412.0,70390.0,0.21985779]
[1773245410311,0.07100658,70417.0,70390.0,0.21985779]
[1773245410312,0.07100218,70421.0,70390.0,0.21985779]
[1773245410433,0.21232739,70432.0,70389.0,0.07103382]
[1773245410434,0.00022001,70434.0,70401.0,0.21985779]
[1773245410635,0.00022001,70434.0,70411.0,0.20471909]
[1773245410841,0.17017823,70438.0,70412.0,0.22133779]
[1773245411045,0.00022001,70438.0,70412.0,0.22133779]
[1773245411254,0.00022001,70444.0,70412.0,0.22133779]
[1773245411452,0.00022001,70452.0,70421.0,0.21985779]
[1773245411697,0.00048,70457.0,70421.0,0.21985779]
[1773245411698,0.21232739,70455.0,70425.0,0.21985779]
[1773245412135,0.21232739,70454.0,70425.0,0.21985779]
[1773245412346,0.00148,70456.0,70425.0,0.21985779]
[1773245412543,0.07244633,70456.0,70425.0,0.21985779]
[1773245412755,0.07244633,70456.0,70424.0,0.07099852]
[1773245412756,0.07243704,70466.0,70431.0,0.21985779]
[1773245412912,0.00148,70463.0,70433.0,0.21985779]
[1773245413609,0.00148,70463.0,70434.0,0.07098844]
[1773245413830,0.00148,70463.0,70435.0,0.21985779]
[1773245414017,0.0724393,70463.0,70435.0,0.21985779]
[1773245414341,0.07243927,70463.0,70435.0,0.21985779]
[1773245414892,0.00148,70463.0,70435.0,0.21985779]
[1773245415356,0.00148,70461.0,70437.0,0.21985779]
[1773245415509,0.00148,70461.0,70432.0,0.07098844]
[1773245415510,0.22783879,70460.0,70438.0,0.00148]
[1773245415711,0.22783879,70460.0,70431.0,0.29096061]
[1773245415712,0.29880204,70459.0,70436.0,0.07098604]
[1773245415918,0.22783879,70458.0,70437.0,0.00148]
[1773245416717,0.22783879,70458.0,70433.0,0.07098945]
[1773245417032,0.22783879,70458.0,70432.0,0.07098978]
[1773245417033,0.22783879,70458.0,70435.0,0.001]